[Event "5th Vera Menchik Memorial 2022"]
[Site "Prag"]
[Date "2022.06.05"]
[Round "7.2"]
[White "Pulpan, Jakub"]
[Black "Neuman, Petr"]
[Result "0-1"]
[ECO "C41"]
[WhiteElo "2418"]
[BlackElo "2389"]
[Annotator "TA"]
[PlyCount "54"]
[EventDate "2022.06.05"]
[EventType "tourn"]
[EventCountry "CZE"]
[SourceTitle "playchess.com"]
[Source "ChessBase"]
[SourceQuality "1"]
[TimeControl "720+3"]

{[%evp 22,54,10,0,0,0,0,0,10,6,12,0,-8,-196,-196,-227,-232,-235,-233,-343,-343,-358,-271,-281,-256,-336,-341,-343,-319,-545,-545,-708,-700,-956,-942]} 1. e4 {[%emt 0:00:01]} d6 {[%emt 0:00:03]} 2. d4 {[%emt 0:00:01]} Nf6 {[%emt 0:00:01]} 3. Nc3 {[%emt 0:00:01]} e5 {[%emt 0:00:01]} 4. Nf3 {[%emt 0:00:16]} Nbd7 {[%emt 0:00:01]} 5. Bc4 {[%emt 0:00:06]} Be7 {[%emt 0:00:01]} 6. O-O {[%emt 0:00:03]} O-O {[%emt 0:00:02]} 7. Re1 {[%emt 0:00:01]} c6 {[%emt 0:00:01]} 8. a4 {[%emt 0:00:01]} b6 {[%emt 0:00:18]} 9. d5 {[%emt 0:00:07]} cxd5 {[%emt 0:00:01]} 10. Nxd5 {[%emt 0:00:01]} Bb7 {[%emt 0:00:01]} 11. b3 {[%emt 0:00:03]} Rc8 {[%emt 0:00:03]} 12. Re2 {[%emt 0:00:01]} Nc5 {[%emt 0:00:13][%cal Bd7c5,Bc5e6,Be6f4][%mdl 32] C41: Philidor Defence.} 13. Nxf6+ {[%emt 0:00:40]} Bxf6 {[%emt 0:00:01]} 14. Bd5 {[%emt 0:00:05]} Bxd5 {[%emt 0:00:47] The position is equal.} 15. Qxd5 {[%emt 0:00:05]} Qd7 {[%emt 0:00:05]} 16. Bb2 {[%emt 0:01:26]} Ne6 {[%emt 0:00:21] [#] Hoping for ...Nf4.} 17. g3 $146 {[%emt 0:01:15] [#] Against Nf4} (17. Qd1 $11 {and White is okay.}) ({Predecessor:} 17. Qb5 Rc6 18. g3 {½-½ (18) Sherwood,R-Herzog,K LSS email 2007}) 17... Nf4 $1 $19 {[%emt 0:00:02][%mdl 512]} 18. gxf4 {[%emt 0:01:42]} (18. Qd2 Nxe2+) 18... Qg4+ {[%emt 0:00:02]} 19. Kf1 {[%emt 0:00:02] Black must now prevent Qd3.} Qxf3 {[%emt 0:00:02][%cal Rf3h1]} 20. Rd2 {[%emt 0:00:47]} (20. Ke1 {was worth a try.}) 20... Qxf4 {[%emt 0:01:22]} ({Inferior is} 20... exf4 21. e5 Qxd5 22. Rxd5 Bxe5 23. Bxe5 dxe5 24. c4 $17) 21. h3 {[%emt 0:01:14]} Qh2 {[%emt 0:01:41]} 22. Qd3 {[%emt 0:00:51]} d5 {[%emt 0:00:10] ...Bg5 is the strong threat.} ({Not} 22... Bg5 $2 23. f4 Qxf4+ 24. Rf2 $19) 23. Qg3 {[%emt 0:02:38]} Qh1+ {[%emt 0:00:29]} 24. Ke2 {[%emt 0:00:16]} Qxe4+ {[%emt 0:00:03]} 25. Qe3 $2 {[%emt 0:00:01]} (25. Kf1 {was necessary.}) 25... Qf5 {[%emt 0:00:26] Black is clearly winning.} 26. c3 {[%emt 0:01:09]} Bg5 {[%emt 0:00:22]} 27. Qd3 {[%emt 0:00:01]} e4 {[%emt 0:00:03] White did not feel at home in the position after the opening.  Weighted Error Value: White=0.80/Black=0.07 (flawless)} 0-1

[Event "5th Vera Menchik Memorial 2022"]
[Site "Prag"]
[Date "2022.06.05"]
[Round "7.3"]
[White "Jirovsky, Milos"]
[Black "Hrabusa, Matej"]
[Result "1/2-1/2"]
[ECO "A13"]
[WhiteElo "2458"]
[BlackElo "2361"]
[Annotator "TA"]
[PlyCount "32"]
[EventDate "2022.06.05"]
[EventType "tourn"]
[EventCountry "CZE"]
[SourceTitle "playchess.com"]
[Source "ChessBase"]
[SourceQuality "1"]
[TimeControl "720+3"]

{[%evp 19,32,0,5,-4,-6,-6,1285,12,-5,-22,68,0,0,0,67]} 1. Nf3 {[%emt 0:00:01]} d5 {[%emt 0:00:01]} 2. c4 {[%emt 0:00:01]} e6 {[%emt 0:00:01]} 3. g3 {[%emt 0:00:01]} Nf6 {[%emt 0:00:02]} 4. Bg2 {[%emt 0:00:01]} dxc4 {[%emt 0:00:02]} 5. Qa4+ {[%emt 0:00:02]} Nbd7 {[%emt 0:00:02]} 6. O-O {[%emt 0:00:05]} a6 {[%emt 0:00:01]} 7. Qxc4 {[%emt 0:00:01]} b5 {[%emt 0:00:02]} 8. Qc2 {[%emt 0:00:01]} Bb7 {[%emt 0:00:02]} 9. a4 {[%emt 0:00:02]} c5 {[%emt 0:00:34]} 10. d3 {[%emt 0:00:14]} Be7 {[%emt 0:00:05]} 11. axb5 {[%emt 0:00:09] A13: English Opening: 1...e6.} axb5 {[%emt 0:00:02]} 12. Rxa8 {[%emt 0:00:02] [#]} Qc8 $146 {[%emt 0:11:45][%mdl 8192] [#]} (12... Qxa8 $11 13. b3 O-O) ({Predecessor:} 12... Qxa8 13. Na3 Bc6 14. Ne1 Nd5 15. Bd2 O-O 16. Nf3 Bf6 17. e4 Nb4 18. Bxb4 cxb4 {0-1 (54) Deviatkin,A (2528)-Savchenko,B (2556) St Petersburg 2015}) 13. Rb8 $2 Qxb8 $11 {[%emt 0:00:00]} 14. Na3 {[%emt 0:00:04]} Qa8 {[%emt 0:00:00]} (14... Bc6 $11) 15. Bg5 {[%emt 0:00:02]} (15. Nxb5 $14 O-O 16. Na3) 15... Bc6 {[%emt 0:00:00]} 16. Ne1 {[%emt 0:00:11]} O-O {[%emt 0:00:00] Weighted Error Value: White=0.97/Black=0.46} (16... Bxg2 $11 17. Nxg2 Qa6) 1/2-1/2

[Event "5th Vera Menchik Memorial 2022"]
[Site "Prag"]
[Date "2022.06.05"]
[Round "7.4"]
[White "Soural, Jan"]
[Black "Sahidi, Samir"]
[Result "0-1"]
[ECO "E09"]
[WhiteElo "2140"]
[BlackElo "2459"]
[Annotator "TA"]
[PlyCount "100"]
[EventDate "2022.06.05"]
[EventType "tourn"]
[EventCountry "CZE"]
[SourceTitle "playchess.com"]
[Source "ChessBase"]
[SourceQuality "1"]
[TimeControl "720+3"]

{[%evp 25,100,33,52,46,71,82,66,65,65,72,75,75,79,60,61,0,96,50,84,84,87,68,81,45,45,29,102,70,120,120,120,120,120,120,100,-60,23,20,22,21,7,6,20,0,23,0,24,0,0,0,0,0,0,0,0,0,0,0,0,0,0,0,0,-1,-1,-75,-27,-5130,-5115,-4133,-4,-29973,-29973,-29971,-29965,-6303,-6231]} 1. d4 {[%emt 0:00:01]} Nf6 {[%emt 0:00:02]} 2. c4 {[%emt 0:00:01]} e6 {[%emt 0:00:01]} 3. g3 {[%emt 0:00:02]} d5 {[%emt 0:00:01]} 4. Nf3 {[%emt 0:00:01]} Be7 {[%emt 0:00:03]} 5. Bg2 {[%emt 0:00:01]} O-O {[%emt 0:00:02]} 6. O-O {[%emt 0:00:02]} c6 {[%emt 0:00:03]} 7. Nbd2 {[%emt 0:00:03]} b6 {[%emt 0:00:09]} 8. Qc2 {[%emt 0:00:03]} Nbd7 {[%emt 0:00:12]} 9. e4 {[%emt 0:00:03]} dxe4 {[%emt 0:00:25]} 10. Nxe4 {[%emt 0:00:02]} Bb7 {[%emt 0:00:04]} 11. Rd1 {[%emt 0:00:22]} Nxe4 {[%emt 0:00:07]} 12. Qxe4 {[%emt 0:00:01]} Nf6 {[%emt 0:00:01]} 13. Qc2 {[%emt 0:00:11]} Qc7 {[%emt 0:00:18]} 14. Bf4 {[%emt 0:00:15] E09: Closed Catalan: Main Line: 7 Qc2 c6 8 Nbd2.} Bd6 {[%emt 0:00:01]} 15. Bxd6 {[%emt 0:00:04]} Qxd6 {[%emt 0:00:02]} 16. Ne5 {[%emt 0:00:53] White is slightly better.} Qc7 {[%emt 0:00:11]} 17. c5 {[%emt 0:00:08]} Rfd8 {[%emt 0:00:52] [#]} 18. Nc4 $146 {[%emt 0:00:43]} ({Predecessor:} 18. Bxc6 Bxc6 19. cxb6 Qxb6 20. Nxc6 Rd6 21. Rac1 Nd5 22. Qc5 Qxc5 23. Rxc5 Kf8 24. Rdc1 {1-0 (39) Pazderski,Z (2246)-Krasiewicz,R (2053) Warsaw 2010}) 18... h6 {[%emt 0:00:41]} 19. Nd6 {[%emt 0:00:33]} Ne8 {[%emt 0:00:07]} 20. Nc4 {[%emt 0:00:18]} ({White should play} 20. Nxe8 $14 Rxe8 21. a4) 20... Rac8 {[%emt 0:00:21]} (20... Nf6 $11) 21. Rac1 {[%emt 0:00:16]} (21. a4 $16) 21... Nf6 {[%emt 0:00:41]} 22. Nd6 $36 {[%emt 0:00:04][%mdl 2048] White is in control.} Rb8 {[%emt 0:00:02]} 23. h4 {[%emt 0:00:27]} Ba6 {[%emt 0:00:13]} 24. b4 {[%emt 0:00:52]} bxc5 {[%emt 0:00:11]} 25. bxc5 {[%emt 0:00:02]} Nd5 {[%emt 0:00:04]} (25... Ne8 $11) 26. Be4 {[%emt 0:02:17]} Rb4 {[%emt 0:00:36]} (26... Nf6 $14) 27. a3 $16 {[%emt 0:00:48]} Rbb8 {[%emt 0:00:06]} 28. Rb1 {[%emt 0:00:17]} Nf6 {[%emt 0:00:27]} 29. Bf3 {[%emt 0:00:08]} Ne8 {[%emt 0:00:15]} 30. Nc4 $2 {[%emt 0:00:53]} (30. Rxb8 $16 Rxb8 31. Qa4) 30... Bxc4 {[%emt 0:00:09]} (30... Rxb1 $15 31. Rxb1 Rxd4) 31. Qxc4 $11 {[%emt 0:00:02] Black should prevent Qa4.} Nf6 {[%emt 0:00:12]} 32. Qa6 {[%emt 0:00:26]} Nd5 {[%emt 0:00:31]} 33. Bxd5 {[%emt 0:00:26]} exd5 {[%emt 0:00:02]} 34. Re1 {[%emt 0:00:16]} g6 {[%emt 0:00:07]} 35. Kg2 {[%emt 0:00:09]} Kg7 {[%emt 0:00:01]} 36. Kg1 {[%emt 0:00:30]} Qd7 {[%emt 0:00:12]} 37. Kg2 {[%emt 0:00:03]} g5 {[%emt 0:00:17]} 38. Rxb8 {[%emt 0:00:30]} Rxb8 {[%emt 0:00:01]} 39. hxg5 {[%emt 0:00:01]} hxg5 {[%emt 0:00:02][%mdl 4096] Endgame KQR-KQR} 40. Qe2 {[%emt 0:00:01] [#] Qe5+ is the strong threat.} Qf5 {[%emt 0:00:21]} ({Don't take} 40... Rh8 41. Qe5+ f6 42. Qe7+ Qxe7 43. Rxe7+ Kg6 44. Rxa7 $14) 41. g4 {[%emt 0:00:40]} Qf4 {[%emt 0:00:10]} 42. Qe5+ {[%emt 0:00:01]} Qxe5 {[%emt 0:00:03]} 43. Rxe5 {[%emt 0:00:01] KR-KR} Kf6 {[%emt 0:00:03]} 44. Rf5+ {[%emt 0:00:17]} Kg6 {[%emt 0:00:05]} 45. Rf3 {[%emt 0:00:07]} (45. Re5 $1 $11 {remains equal.}) 45... Re8 {[%emt 0:00:13]} (45... Rb2 $17 {Threatens to win with ...Rd2.} 46. Rd3 a5) 46. Re3 $2 {[%emt 0:00:08][%mdl 8192]} (46. Kg3 $11) 46... Rxe3 $19 {[%emt 0:00:20]} 47. fxe3 {[%emt 0:00:01] [#]} f5 $2 {[%emt 0:00:02]} ({Better is} 47... Kf6 $1 $19 {[%cal Rf6e6]} 48. Kf3 Ke6) 48. Kf3 $2 {[%emt 0:00:04][%mdl 8192]} (48. e4 $11 fxe4 49. a4) 48... fxg4+ {[%emt 0:00:04]} 49. Kxg4 {[%emt 0:00:01]} Kf6 {[%emt 0:00:01]} 50. a4 {[%emt 0:00:39]} a5 {[%emt 0:00:02] Weighted Error Value: White=0.53/Black=0.41} 0-1

[Event "5th Vera Menchik Memorial 2022"]
[Site "Prag"]
[Date "2022.06.05"]
[Round "7.5"]
[White "Pascucci, Marco"]
[Black "Burdalev, Kirill"]
[Result "1/2-1/2"]
[ECO "D45"]
[WhiteElo "2155"]
[BlackElo "2381"]
[Annotator "TA"]
[PlyCount "70"]
[EventDate "2022.06.05"]
[EventType "tourn"]
[EventCountry "CZE"]
[SourceTitle "playchess.com"]
[Source "ChessBase"]
[SourceQuality "1"]
[TimeControl "720+3"]

{[%evp 15,70,28,43,52,52,0,0,-7,-9,-47,-38,-32,0,-43,-27,-30,0,0,0,0,0,-6,-21,-50,-58,-44,-52,-79,-88,-93,-64,-89,-79,-100,-102,-108,-95,-112,-86,-84,-82,-93,-76,-79,-58,-50,-22,-35,-21,-48,-22,-61,-64,-73,-76,-77,-79]} 1. Nf3 {[%emt 0:00:01]} d5 {[%emt 0:00:01]} 2. c4 {[%emt 0:00:01]} c6 {[%emt 0:00:01]} 3. e3 {[%emt 0:00:01]} Nf6 {[%emt 0:00:01]} 4. Nc3 {[%emt 0:00:01]} a6 {[%emt 0:00:04]} 5. Qc2 {[%emt 0:00:02]} dxc4 {[%emt 0:00:52]} 6. Bxc4 {[%emt 0:00:02]} e6 {[%emt 0:00:10]} 7. d4 {[%emt 0:00:19]} b5 {[%emt 0:00:21]} 8. Bd3 {[%emt 0:00:04]} Nbd7 {[%emt 0:00:32]} 9. O-O {[%emt 0:00:32] D45: Semi-Slav: 5 e3.} c5 {[%emt 0:00:20]} 10. Rd1 {[%emt 0:01:57] [#]} (10. a4 $14) 10... cxd4 $146 {[%emt 0:00:14]} ({Predecessor:} 10... Qb6 11. Ne4 c4 12. Nxf6+ Nxf6 13. Be4 Nxe4 14. Qxe4 Bb7 15. Qg4 h5 16. Qh3 Be7 {0-1 (29) Jorge,L (1898)-Gauche,C (2258) Porto Alegre 2013}) 11. Nxd4 {[%emt 0:00:13] The position is equal.} Bb7 {[%emt 0:00:04]} 12. Bf1 {[%emt 0:00:15]} Rc8 {[%emt 0:00:11]} 13. Qe2 {[%emt 0:00:14]} Bc5 {[%emt 0:01:10]} (13... Qc7 {is interesting.} 14. e4 b4 15. Nd5 exd5 16. exd5+ Qe5) 14. a3 {[%emt 0:00:16]} O-O {[%emt 0:00:07]} 15. e4 {[%emt 0:00:26]} Qb6 {[%emt 0:00:53]} 16. Be3 {[%emt 0:00:41]} Nxe4 {[%emt 0:01:05]} 17. Nxe4 {[%emt 0:00:13]} Bxe4 {[%emt 0:00:02]} 18. b4 {[%emt 0:00:06]} Bxd4 {[%emt 0:00:05]} 19. Rxd4 {[%emt 0:01:35]} Qb7 {[%emt 0:00:18]} 20. a4 {[%emt 0:00:32][%cal Ra4b5]} Bc6 {[%emt 0:01:34]} 21. axb5 {[%emt 0:00:52]} Bxb5 {[%emt 0:00:15]} 22. Qb2 {[%emt 0:00:58]} Bxf1 {[%emt 0:00:46]} 23. Rxf1 {[%emt 0:00:09]} Nf6 {[%emt 0:00:07]} 24. Bg5 {[%emt 0:00:20] [#] aiming for Bxf6.} Nd5 {[%emt 0:00:30]} 25. Rg4 {[%emt 0:00:28] Strongly threatening Bh6.} f6 {[%emt 0:00:20]} 26. Bd2 {[%emt 0:00:21]} Kh8 {[%emt 0:00:50]} 27. Qb3 {[%emt 0:00:18]} e5 {[%emt 0:01:08]} 28. Rh4 {[%emt 0:00:11]} Qd7 {[%emt 0:00:31]} 29. Qd3 {[%emt 0:00:29][%csl Gh4,LRa6,LRh7][%cal Rd3h7] [#]} f5 {[%emt 0:00:04]} (29... g5 $5 {[%cal Rg5h4]} 30. Rh3 Qb7 $17) 30. Qxa6 {[%emt 0:00:04]} Nf6 {[%emt 0:00:34]} 31. Bg5 {[%emt 0:00:15]} Rc6 {[%emt 0:00:08]} 32. Qe2 {[%emt 0:00:07]} Ne4 {[%emt 0:00:07]} 33. Qh5 {[%emt 0:00:21][%csl Gh4][%cal Rh5h7]} Nxg5 {[%emt 0:00:05]} 34. Qxg5 {[%emt 0:00:01]} h6 {[%emt 0:00:03]} 35. Qe3 {[%emt 0:01:23]} e4 {[%emt 0:00:15] Weighted Error Value: White=0.13 (very precise) /Black=0.08 (flawless)} 1/2-1/2

[Event "5th Vera Menchik Memorial 2022"]
[Site "Prag"]
[Date "2022.06.05"]
[Round "7.6"]
[White "Richtrova, Eliska"]
[Black "Bauma, Jiri"]
[Result "1/2-1/2"]
[ECO "C60"]
[WhiteElo "2204"]
[BlackElo "2135"]
[Annotator "TA"]
[PlyCount "106"]
[EventDate "2022.06.05"]
[EventType "tourn"]
[EventCountry "CZE"]
[SourceTitle "playchess.com"]
[Source "ChessBase"]
[SourceQuality "1"]
[TimeControl "720+3"]

{[%evp 9,106,23,31,29,38,39,70,68,64,63,67,76,187,187,208,170,225,267,249,0,131,107,120,110,135,123,141,137,182,124,108,116,200,192,197,131,142,152,260,190,191,85,158,148,488,98,99,92,106,77,239,86,120,0,0,0,20,0,0,0,0,-296,8,16,55,12,59,24,110,100,218,0,102,8,41,28,50,37,43,8,74,-14,391,367,320,0,190,184,189,-131,-119,-95,0,0,0,-108,-106,-207,-137]} 1. e4 {[%emt 0:00:02]} e5 {[%emt 0:00:02]} 2. Nf3 {[%emt 0:00:01]} Nc6 {[%emt 0:00:01]} 3. Bb5 {[%emt 0:00:01]} g6 {[%emt 0:00:02]} 4. O-O {[%emt 0:00:11]} Bg7 {[%emt 0:00:02]} 5. c3 {[%emt 0:00:11]} a6 {[%emt 0:00:04]} 6. Ba4 {[%emt 0:00:02] C60: Ruy Lopez: Unusual Black 3rd moves and 3...g6.} b5 {[%emt 0:00:08]} 7. Bc2 {[%emt 0:00:04]} Nf6 {[%emt 0:00:17]} 8. d4 {[%emt 0:00:32] White is slightly better.} exd4 {[%emt 0:00:23]} 9. e5 {[%emt 0:00:28]} Nd5 {[%emt 0:00:33] [#]} 10. Bg5 $146 {[%emt 0:00:30]} ({Predecessor:} 10. cxd4 d6 11. Be4 Nce7 12. Bg5 Bb7 13. Qb3 Rb8 14. Bxd5 Bxd5 15. Bxe7 Bxb3 16. Bxd8 {1-0 (27) Zhurbinsky,D (1823)-Mikhalevski,V (2560) Chess.com INT 2020}) 10... f6 {[%emt 0:00:36]} (10... Nce7 $16) 11. exf6 $18 {[%emt 0:00:20]} Bxf6 {[%emt 0:01:22]} 12. Re1+ {[%emt 0:00:42]} Kf8 {[%emt 0:00:03]} (12... Kf7 {was necessary.} 13. Bb3 Bxg5) 13. Bh6+ $1 {[%emt 0:00:33]} (13. Nxd4 Bxg5 14. Qf3+ Nf4 15. Nxc6 dxc6 $19) 13... Bg7 {[%emt 0:00:02]} 14. Bg5 {[%emt 0:09:08]} (14. Qd2 $18) 14... Bf6 $16 {[%emt 0:00:13]} 15. Qd2 {[%emt 0:00:00]} (15. Nxd4 Bxg5 16. Qf3+ Nf4 17. Nxc6 dxc6 $17) 15... Bxg5 {[%emt 0:01:31]} 16. Nxg5 {[%emt 0:00:00]} h6 {[%emt 0:02:05]} 17. Nf3 {[%emt 0:00:00] White is more active.} Qf6 {[%emt 0:00:08]} 18. cxd4 {[%emt 0:00:00]} (18. Qe2 Nf4 19. Qd1 (19. Qe4 $2 d5 $19) 19... Kg7 $11) 18... Bb7 {[%emt 0:00:53]} 19. Nc3 {[%emt 0:00:00]} (19. Ne5 $18 Kg7 20. Be4 (20. Nxd7 Qxd4 21. Re6 Qxd2 $16) (20. Nxg6 Rhe8 $11)) 19... Nxc3 {[%emt 0:00:26]} 20. bxc3 {[%emt 0:00:00]} Ne7 {[%emt 0:00:27]} (20... Re8 $16) 21. Ne5 $18 {[%emt 0:00:00]} Rd8 {[%emt 0:00:03]} 22. Be4 {[%emt 0:00:00]} (22. a4 $18) 22... Bxe4 $16 {[%emt 0:00:06]} 23. Rxe4 {[%emt 0:00:00]} d6 {[%emt 0:00:36]} (23... h5 $16 24. f3 g5) 24. Ng4 {[%emt 0:00:00]} Qg5 {[%emt 0:00:16]} 25. Qe2 {[%emt 0:00:00]} (25. Rf4+ $18 Nf5 26. h4 Qxh4 27. Nh2) 25... h5 {[%emt 0:00:19]} (25... Nd5 $142) 26. Re1 {[%emt 0:00:00]} Rh7 {[%emt 0:00:17][%mdl 8192]} (26... Nd5 $16) 27. Ne3 $2 {[%emt 0:00:00]} (27. h4 $18 Qxg4 28. Rxg4 hxg4 29. Qxg4) 27... Rf7 {[%emt 0:00:11]} 28. h4 {[%emt 0:00:00]} Qf6 {[%emt 0:00:12]} 29. g3 {[%emt 0:00:00] aiming for Ng2.} d5 $2 {[%emt 0:00:36]} (29... Kg8 $16 {might work better.}) 30. Rf4 $2 {[%emt 0:00:00]} (30. Re5 $1 $18) 30... Qe6 {[%emt 0:00:17]} 31. Ng2 {[%emt 0:00:00]} ({Better is} 31. Qf3 $16 {And now Ng2 would win.} Nf5 32. Nc2) 31... Qxe2 $11 {[%emt 0:00:03]} 32. Rxe2 {[%emt 0:00:00]} Nf5 {[%emt 0:00:08]} 33. g4 {[%emt 0:00:57]} hxg4 {[%emt 0:01:20]} 34. Rxg4 {[%emt 0:00:00]} Rd6 {[%emt 0:00:00]} 35. Nf4 $2 {[%emt 0:00:00][%mdl 8192]} (35. Re5 $11 {and White stays safe.}) 35... Rff6 $2 {[%emt 0:00:00]} ({Black should try} 35... Nh6 $1 $19 {[%cal Rh6g4]} 36. Nxg6+ Kg7) 36. Nd3 {[%emt 0:00:00]} Rde6 {[%emt 0:00:00]} 37. Ne5 {[%emt 0:00:00]} Kg7 {[%emt 0:00:00]} (37... Ke8 $11) 38. h5 {[%emt 0:00:00]} (38. Kf1 $5 {[%cal Rh4h5]}) 38... Ne7 {[%emt 0:00:00]} (38... Nh6 $11 39. Rg2 Nf7) 39. Re3 {[%emt 0:00:00][%cal Oh5h6]} Kh6 {[%emt 0:00:00]} (39... Nc6 $16) 40. Rh3 $2 {[%emt 0:00:00]} ({Don't play} 40. hxg6 $6 Kg7 $16) (40. Rg2 $1 $18) 40... g5 {[%emt 0:00:00]} (40... gxh5 $11 41. Rg2 Rf8) 41. Rgg3 {[%emt 0:00:00]} (41. Rg2 $16 {Black must now prevent Ng4+.} Rf5 42. Ng4+ Kh7 43. Re3 (43. Ne3 Rf4 $16)) 41... Nf5 {[%emt 0:00:00]} 42. Ng4+ {[%emt 0:00:00]} Kg7 {[%emt 0:00:00]} 43. Nxf6 {[%emt 0:00:00]} Nxg3 {[%emt 0:00:00]} 44. Rxg3 {[%emt 0:00:00]} Kxf6 $14 {[%emt 0:00:00][%mdl 4096] Endgame [#] KR-KR} (44... Re1+ $1 $11 {keeps the balance.} 45. Kg2 Kxf6) 45. h6 {[%emt 0:00:00]} ({White should play} 45. f4 $1 $16 {[%cal Rf4g5]}) 45... Kf5 {[%emt 0:00:00][%mdl 8192]} (45... Kg6 $11) 46. Rh3 $18 {[%emt 0:00:00] Strongly threatening h7.} Re8 {[%emt 0:00:00]} 47. Kg2 $2 {[%emt 0:00:00]} (47. h7 $18 Rh8 48. Rh6) 47... Rh8 $2 {[%emt 0:00:00] [#]} (47... Kg6 $11) 48. Kg3 $1 {[%emt 0:00:00] Threatens to win with h7.} ({And not} 48. h7 Kg6 $11) 48... Kg6 {[%emt 0:00:00]} 49. Rh1 {[%emt 0:00:12]} (49. Kg4 $18) 49... Rxh6 $17 {[%emt 0:00:02]} 50. Re1 {[%emt 0:00:00]} Kh5 {[%emt 0:00:18]} 51. Rh1+ $1 {[%emt 0:00:06]} Kg6 {[%emt 0:00:01]} 52. Re1 {[%emt 0:00:00]} Kf7 {[%emt 0:00:36]} 53. Kg2 (53. Kg4 $17 {was worth a try.}) 53... Rf6 {[%emt 0:00:03] A wild game.  Weighted Error Value: White=0.74/Black=0.73} 1/2-1/2